bitfinex/quotes_SOLUSD_20250630
["timestamp","ask_amount","ask_price","bid_price","bid_amount"]
[1751247367977,26.0,151.97,151.95,6.08]
[1751247368267,26.0,151.96,151.95,6.08]
[1751247370058,5.26402312,151.98,151.95,6.08]
[1751247370264,26.0,151.96,151.95,6.08]
[1751247374456,26.0,151.97,151.95,6.08]
[1751247375876,0.14216157,151.99,151.95,6.08]
[1751247375877,26.0,151.96,151.95,6.08]
[1751247378470,146.9,152.0,151.95,11.34488976]
[1751247384865,26.0,151.99,151.95,11.34488976]
[1751247388497,5.26284936,152.01,151.95,11.34488976]
[1751247391875,0.14216157,152.04,151.95,11.34488976]
[1751247391876,26.0,152.0,151.95,24.50711417]
[1751247392281,31.26214907,152.03,151.95,24.50711417]
[1751247392979,165.00425857,152.05,151.96,18.64964886]
[1751247393157,23.86760371,152.08,151.96,18.64964886]
[1751247393158,157.61578426,152.08,151.96,18.64964886]
[1751247393357,26.0,152.05,151.96,18.64964886]
[1751247394086,26.0,152.04,151.96,18.64964886]
[1751247394272,5.2614792,152.05,151.97,5.26419688]
[1751247394472,31.2614792,152.05,151.97,5.26419688]
[1751247395190,31.2614792,152.05,151.97,18.42468908]
[1751247397085,26.0,152.05,151.97,18.42468908]
[1751247397260,31.26143115,152.05,151.97,18.42468908]
[1751247398285,26.0,152.05,151.97,18.42468908]
[1751247399893,31.26152549,152.05,151.97,18.42468908]
[1751247400086,26.0,152.05,151.97,18.42468908]
[1751247405715,6.03912293,152.15,152.03,18.64964886]
[1751247405920,167.39764067,152.16,152.05,18.64964886]
[1751247406197,18.64964886,152.14,152.04,22.16]
[1751247406582,0.28432314,152.13,152.04,22.16]
[1751247406778,26.0,152.11,152.04,22.16]
[1751247406980,26.0,152.11,152.05,5.26142716]
[1751247407190,10.51348818,152.15,152.05,23.91107602]
[1751247407492,146.9,152.16,152.06,20.23534886]
[1751247407793,152.15668539,152.19,152.06,20.23534886]
[1751247407979,152.15668539,152.19,152.08,18.64964886]
[1751247407980,0.28432314,152.18,152.08,18.64964886]
[1751247408177,26.0,152.16,152.09,16.3]
[1751247408977,5.2579691,152.15,152.09,21.55983196]
[1751247409492,5.2579691,152.15,152.1,5.88]
[1751247409699,26.0,152.12,152.1,5.88]
[1751247411025,31.25919487,152.12,152.1,5.88]
[1751247414610,31.25919487,152.12,152.03,6.0111]
[1751247414611,26.0,152.08,152.03,6.0111]
[1751247414774,26.28432314,152.08,152.07,5.88]
[1751247415494,31.5447124,152.08,152.07,5.88]
[1751247415700,26.0,152.04,152.03,5.88]
[1751247417011,26.28432314,152.07,152.03,5.88]
[1751247418528,26.28432314,152.07,152.03,11.14202245]
[1751247420774,26.28432314,152.07,152.03,5.88]
[1751247421393,26.0,152.06,152.03,11.14211435]
[1751247421789,146.9,152.1,152.03,11.14211435]
[1751247421999,26.0,152.07,152.03,11.14211435]
[1751247425485,26.0,152.07,152.03,5.88]
[1751247425787,0.28432314,152.06,152.03,5.88]
[1751247427484,5.26142716,152.05,152.03,5.88]
[1751247434318,5.54552105,152.06,152.03,5.88]
[1751247434513,0.28432314,152.06,152.03,5.88]
[1751247434894,5.54550479,152.06,152.03,5.88]
[1751247436621,26.28432314,152.04,152.03,5.88]
[1751247437905,26.0,152.04,152.03,5.88]
[1751247438106,146.9,152.07,152.03,11.14198248]
[1751247438323,146.9,152.13,152.04,1.6367]
[1751247438513,146.9,152.13,152.04,7.8192]
[1751247438724,26.0,152.1,152.04,7.8192]
[1751247440233,26.0,152.1,152.05,5.26142716]
[1751247444446,26.0,152.1,152.04,13.08091937]
[1751247445504,31.2597545,152.1,152.04,7.8192]
[1751247445705,31.2597545,152.1,152.04,13.08096961]
[1751247445907,26.0,152.1,152.04,13.08096961]
[1751247446305,31.25972453,152.1,152.04,13.08096961]
[1751247446836,5.25972453,152.1,152.04,13.08096961]
[1751247447830,5.25900604,152.12,152.04,13.08096961]
[1751247451134,18.40652115,152.12,152.04,7.8192]
[1751247451324,0.28432314,152.11,152.04,7.8192]
[1751247452411,5.25969756,152.1,152.04,7.8192]
[1751247453826,5.25969756,152.1,152.04,13.08094537]
[1751247455544,5.25900604,152.12,152.04,13.08094537]
[1751247455729,31.25900604,152.12,152.04,13.08094537]
[1751247456537,31.27900604,152.12,152.04,13.08094537]
[1751247460032,26.0,152.09,152.04,7.8192]
[1751247462732,31.26018633,152.09,152.04,7.8192]
[1751247464026,31.26018633,152.09,152.04,13.08096406]
[1751247465224,31.26018633,152.09,152.04,7.8192]
[1751247466945,31.26018633,152.09,152.04,13.08089283]
[1751247467161,0.02,152.12,152.04,13.08089283]
[1751247467348,0.02,152.12,152.05,18.64964886]
[1751247467849,0.02,152.12,152.06,16.22]
[1751247469752,0.02,152.12,152.07,5.26073518]
[1751247475153,0.30432314,152.12,152.06,21.48094431]
[1751247475462,0.30432314,152.12,152.06,5.26094431]
[1751247476356,5.25935178,152.11,152.05,5.26142716]
[1751247478046,0.02,152.12,152.05,5.26142716]
[1751247478444,5.27901467,152.12,152.05,5.26142716]
[1751247479544,0.02,152.12,152.05,5.26142716]
[1751247483042,0.02,152.12,152.05,18.41499506]
[1751247489154,0.02,152.12,152.08,18.64964886]
[1751247489352,0.02,152.12,152.09,16.18]
[1751247489667,0.02,152.12,152.1,5.88]
[1751247491057,0.02,152.12,152.11,5.25935178]
[1751247491882,0.02,152.12,152.11,6.82265178]
[1751247492173,0.02,152.12,152.11,13.19425178]
[1751247493617,0.02,152.18,152.12,18.64964886]
[1751247493758,0.02,152.18,152.13,16.2]
[1751247495059,0.02,152.18,152.14,5.25831471]
[1751247511274,0.02,152.18,152.14,18.40410148]
[1751247512096,0.02,152.18,152.14,5.25831471]
[1751247516116,0.02,152.18,152.13,21.45854209]
[1751247516297,0.02,152.18,152.13,5.25854209]
[1751247518079,0.30432314,152.18,152.12,5.29900604]
[1751247519087,5.56159228,152.18,152.12,5.29900604]
[1751247521194,26.0,152.17,152.12,5.29900604]
[1751247521370,0.02,152.18,152.13,18.64964886]
[1751247522798,0.02,152.18,152.14,5.25831471]
[1751247526302,0.02,152.18,152.15,16.16]
[1751247528802,0.02,152.18,152.16,5.25762355]
[1751247529105,0.02,152.18,152.17,5.82]
[1751247530714,0.02,152.18,152.17,11.07727804]
[1751247532191,0.02,152.18,152.17,12.73217804]
[1751247532592,0.02,152.19,152.18,30.49698143]
[1751247535387,0.02,152.19,152.18,11.84733257]
[1751247535705,0.02,152.19,152.18,5.25693257]
[1751247541710,0.02,152.19,152.17,5.82]
[1751247542219,0.02,152.19,152.17,11.07725364]
[1751247542597,0.02,152.19,152.18,18.64964886]
[1751247544115,0.02,152.19,152.18,23.90658143]
[1751247545330,0.02,152.19,152.18,5.25693257]
[1751247549216,0.02,152.19,152.18,21.45693257]
[1751247554935,0.02,152.19,152.18,40.10658143]
[1751247569336,0.02,152.19,152.18,67.89390457]
[1751247569642,0.02,152.2,152.19,18.933972]
[1751247569838,0.02,152.21,152.19,18.933972]
[1751247570034,0.02,152.21,152.2,34.80964886]
[1751247571031,0.02,152.21,152.2,40.06589064]
[1751247573053,0.02,152.21,152.2,45.88589064]
[1751247573355,0.02,152.21,152.2,46.17021378]
[1751247573562,0.02,152.21,152.2,72.17021378]
[1751247574229,0.02,152.21,152.2,46.17021378]
[1751247574753,0.02,152.21,152.2,72.17021378]
[1751247576039,0.02,152.21,152.2,50.19021378]
[1751247576353,0.02,152.21,152.2,72.17021378]
[1751247577165,0.02,152.21,152.2,50.19021378]
[1751247577351,0.02,152.21,152.2,72.17021378]
[1751247580968,0.02,152.21,152.2,71.88589064]
[1751247581476,0.02,152.21,152.2,55.72589064]
[1751247581767,0.02,152.21,152.2,71.88589064]
[1751247582662,0.02,152.21,152.2,45.88589064]
[1751247583469,0.02,152.21,152.2,46.17021378]
[1751247586364,0.02,152.25,152.21,18.933972]
[1751247586566,0.02,152.25,152.23,18.933972]
[1751247586761,0.02,152.25,152.24,16.16]
[1751247586962,0.02,152.25,152.24,21.41486074]
[1751247588267,0.02,152.25,152.24,40.34883274]
[1751247592871,0.02,152.25,152.24,40.0645096]
[1751247593971,0.02,152.25,152.24,66.0645096]
[1751247600769,0.02,152.25,152.24,66.34883274]
[1751247604277,0.02,152.25,152.24,50.18883274]
[1751247604484,0.02,152.25,152.24,49.9045096]
[1751247604661,0.02,152.25,152.24,23.9045096]
[1751247604979,0.02,152.25,152.24,40.0445096]
[1751247606279,0.02,152.25,152.24,23.9045096]
[1751247606465,0.02,152.25,152.24,40.0445096]
[1751247607264,0.02,152.25,152.24,40.32883274]
[1751247607460,0.02,152.25,152.24,66.32883274]
[1751247607855,0.02,152.28,152.25,18.933972]
[1751247609879,0.02,152.28,152.25,24.18848759]
[1751247610283,0.02,152.28,152.27,44.64964886]
[1751247610482,0.02,152.28,152.27,66.58964886]
[1751247610665,0.02,152.28,152.27,66.873972]
[1751247611477,2.44033383,152.37,152.29,0.28432314]
[1751247611778,2.44033383,152.37,152.31,18.64964886]
[1751247611967,2.44033383,152.37,152.31,23.90209453]
[1751247612168,0.02,152.33,152.31,23.90209453]
[1751247615496,0.02,152.33,152.31,24.18641767]
[1751247616359,0.02,152.33,152.31,72.12641767]
[1751247629503,0.02,152.33,152.31,46.12641767]
[1751247629682,0.02,152.33,152.32,0.28432314]
[1751247630800,0.345695,152.38,152.36,18.64964886]
[1751247631100,0.345695,152.38,152.37,35.073972]
[1751247631408,0.345695,152.38,152.37,34.78964886]
[1751247632911,0.345695,152.38,152.37,40.04002623]
[1751247634587,0.345695,152.38,152.37,21.39037737]
[1751247635414,0.345695,152.38,152.37,40.04002623]
[1751247640719,0.345695,152.38,152.37,5.25037737]
[1751247640925,0.365695,152.38,152.37,21.41037737]
[1751247642195,0.365695,152.38,152.37,5.25037737]
[1751247642399,0.365695,152.38,152.37,21.41037737]
[1751247643102,0.365695,152.38,152.35,5.8]
[1751247645806,6.3336,152.37,152.35,5.8]
[1751247646409,31.61584142,152.38,152.35,27.21100004]
[1751247646410,0.365695,152.38,152.35,27.21100004]
[1751247660033,0.365695,152.38,152.35,21.96]
[1751247660419,0.365695,152.38,152.35,27.21106458]
[1751247660616,0.365695,152.38,152.35,5.8]
[1751247661429,0.365695,152.38,152.35,11.05098968]
[1751247661633,0.365695,152.38,152.35,5.8]
[1751247662527,0.365695,152.38,152.35,11.05100891]
[1751247669049,0.365695,152.38,152.35,5.8]
[1751247671238,0.365695,152.38,152.35,11.05103764]
[1751247673345,0.365695,152.38,152.35,5.8]
[1751247675140,0.365695,152.38,152.35,24.1785934]
[1751247675447,0.365695,152.38,152.35,11.05092685]
[1751247676140,0.365695,152.38,152.35,27.27092685]
[1751247677529,0.365695,152.38,152.36,20.18294886]
[1751247679748,0.365695,152.38,152.37,23.90002623]
[1751247686748,0.365695,152.38,152.37,24.18434937]
[1751247687144,0.02,152.39,152.38,18.933972]
[1751247687341,0.02,152.39,152.38,41.461672]
[1751247687668,0.02,152.45,152.38,41.461672]
[1751247687834,0.02,152.45,152.38,24.97734886]
[1751247688029,0.02,152.45,152.39,16.2]
[1751247688430,0.02,152.45,152.4,5.24934383]
[1751247695843,0.02,152.45,152.41,5.88]
[1751247700660,0.02,152.45,152.41,11.12897462]
[1751247700860,0.02,152.45,152.41,5.88]
[1751247702670,5.26762217,152.45,152.41,5.88]
[1751247707266,0.02,152.45,152.41,11.12899777]
[1751247714603,0.02,152.45,152.41,5.88]
[1751247716009,0.02,152.45,152.41,11.1289686]
[1751247716201,0.02,152.45,152.41,5.88]
[1751247717593,0.30432314,152.45,152.41,5.88]
[1751247719007,5.24796641,152.44,152.41,5.88]
[1751247721918,0.02,152.45,152.42,16.16]
[1751247724021,0.02,152.45,152.42,16.18]
[1751247727531,0.02,152.45,152.42,21.42865427]
[1751247740938,0.02,152.45,152.43,18.933972]
[1751247742528,0.02,152.45,152.43,18.64964886]
[1751247742742,0.02,152.45,152.43,24.18216519]
[1751247745442,0.02,152.45,152.43,23.89784205]
[1751247746355,0.02,152.45,152.44,0.5]
[1751247747157,0.02,152.45,152.44,5.74796641]
[1751247748844,0.02,152.45,152.44,21.88796641]
[1751247750765,0.02,152.45,152.44,16.64]
[1751247750937,0.02,152.45,152.44,0.5]
[1751247751136,0.02,152.45,152.41,11.12886035]
[1751247751137,0.02,152.45,152.43,16.14]
[1751247752601,0.02,152.45,152.41,5.88]
[1751247752746,0.02,152.45,152.42,16.16]
[1751247754459,0.02,152.45,152.42,21.40861286]
[1751247759775,0.02,152.45,152.42,34.53025044]
[1751247761775,0.02,152.45,152.44,26.0]
[1751247762778,0.02,152.45,152.44,31.24796641]
[1751247764380,0.02,152.45,152.44,47.38796641]
[1751247766103,0.02,152.45,152.44,47.88796641]
[1751247770199,0.02,152.45,152.44,5.74796641]
[1751247770397,0.02,152.45,152.44,5.24796641]
[1751247770601,0.02,152.45,152.44,21.38796641]
[1751247771396,0.02,152.45,152.42,5.24865503]
[1751247771700,0.02,152.45,152.43,16.14]
[1751247771899,0.02,152.45,152.44,16.14]
[1751247772498,0.02,152.45,152.44,21.38796641]
[1751247773404,0.02,152.45,152.44,16.14]
[1751247773904,0.02,152.45,152.44,21.38796641]
[1751247774592,0.02,152.45,152.42,5.24865503]
[1751247774777,0.02,152.45,152.44,16.14]
[1751247774980,0.02,152.45,152.42,5.24865503]
[1751247775178,0.02,152.45,152.43,16.14]
[1751247776117,0.02,152.45,152.44,5.8]
[1751247781739,0.02,152.45,152.44,11.04796641]
[1751247787618,0.02,152.45,152.44,29.69761527]
[1751247798158,0.02,152.45,152.44,29.98193841]
[1751247798942,0.02,152.45,152.44,37.64563841]
[1751247799144,0.02,152.52,152.47,26.0]
[1751247799346,0.02,152.52,152.48,16.14]
[1751247800150,0.02,152.52,152.47,26.0]
[1751247800356,0.02,152.52,152.48,21.94]
[1751247801247,0.02,152.52,152.49,5.24624565]
[1751247801952,0.02,152.52,152.49,21.38624565]
[1751247804866,0.02,152.52,152.48,5.8]
[1751247805474,0.02,152.52,152.49,5.8]
[1751247814078,0.02,152.52,152.5,16.14]
[1751247815282,0.02,152.52,152.51,5.24555766]
[1751247820860,0.02,152.52,152.5,21.38586848]
[1751247821291,0.02,152.52,152.5,16.14]
[1751247822480,0.02,152.52,152.5,21.38587054]
[1751247823887,0.02,152.52,152.5,5.24587054]
[1751247824192,0.02,152.52,152.5,21.36587054]
[1751247825766,0.02,152.52,152.5,16.12]
[1751247827487,0.02,152.52,152.47,18.933972]
[1751247827704,26.02,152.52,152.48,5.8]
[1751247828082,2.44274626,152.51,152.48,5.8]
[1751247828278,26.02,152.52,152.48,5.8]
[1751247828991,5.24555766,152.51,152.48,5.8]
[1751247837887,31.26532177,152.52,152.48,5.8]
[1751247838300,0.02,152.52,152.48,5.8]
[1751247838774,0.02,152.52,152.48,11.04656992]
[1751247840492,0.02,152.52,152.48,5.8]
[1751247850839,0.02,152.52,152.48,11.04645971]
[1751247866254,0.02,152.52,152.48,24.162934]
[1751247881859,0.02,152.52,152.5,5.24590163]
[1751247889767,0.02,152.52,152.51,20.24464886]
[1751247890079,0.02,152.52,152.51,20.528972]
[1751247890644,0.02,152.52,152.51,46.528972]
[1751247891865,0.02,152.52,152.51,51.77452966]
[1751247894070,0.02,152.52,152.51,67.89452966]
[1751247897182,0.02,152.52,152.51,51.77452966]
[1751247897354,0.02,152.52,152.51,73.69452966]
[1751247898463,0.02,152.52,152.51,71.81520652]
[1751247901781,0.02,152.52,152.51,37.04555766]
[1751247902079,0.02,152.52,152.51,27.16555766]
[1751247903683,0.02,152.52,152.51,11.04555766]
[1751247903987,0.02,152.59,152.55,18.64964886]
[1751247904180,0.02,152.59,152.56,16.12]
[1751247904872,0.02,152.59,152.55,18.64964886]
[1751247905076,0.02,152.59,152.56,21.96]
[1751247906083,0.02,152.59,152.56,27.20362438]
[1751247906785,0.02,152.59,152.57,18.64964886]
[1751247906961,0.02,152.59,152.58,16.16]
[1751247908168,0.02,152.59,152.57,5.24335305]
[1751247908494,0.02,152.59,152.57,21.40335305]
[1751247909083,0.02,152.59,152.57,16.16]
[1751247910087,0.02,152.59,152.57,21.4033881]
[1751247914702,0.02,152.59,152.57,16.16]
[1751247914993,0.02,152.59,152.54,31.24443422]
[1751247915198,0.02,152.59,152.58,5.8]
[1751247917381,26.02,152.59,152.58,5.8]
[1751247917583,27.6483,152.59,152.58,5.8]
[1751247918392,32.89110752,152.59,152.58,5.8]
[1751247924300,33.17543066,152.59,152.58,5.8]
[1751247924608,32.89110752,152.59,152.58,5.8]
[1751247924984,31.26280752,152.59,152.58,5.8]
[1751247925183,26.02,152.59,152.58,5.8]
[1751247926701,0.02,152.59,152.58,5.8]
[1751247950114,26.02,152.59,152.58,5.8]
[1751247951617,31.20205863,152.59,152.58,5.8]
[1751247951798,26.30432314,152.59,152.58,5.8]
[1751247951998,36.44501214,152.59,152.58,5.8]
[1751247952201,31.54713066,152.59,152.58,5.8]
[1751247954820,50.19677952,152.59,152.58,5.8]
[1751247955024,55.0944668,152.59,152.58,5.8]
[1751247963932,36.1604948,152.59,152.58,5.8]
[1751247964105,30.91768728,152.59,152.58,5.8]
[1751247964306,26.02,152.59,152.58,5.8]
[1751247964640,0.02,152.59,152.58,5.8]
[1751247970423,18.953972,152.59,152.58,5.8]
[1751247970618,49.85227567,152.59,152.58,5.8]
[1751247971729,55.09508319,152.59,152.58,5.8]
[1751247972725,36.44543433,152.59,152.58,5.8]
[1751247987612,29.09508319,152.59,152.58,5.8]
[1751247991241,10.44543433,152.59,152.58,5.8]
[1751248004084,36.16111119,152.59,152.58,5.8]
[1751248004235,30.91830367,152.59,152.58,5.8]
[1751248004555,26.02,152.59,152.58,5.8]
[1751248005643,31.26280752,152.59,152.58,5.8]
[1751248008437,36.16703538,152.59,152.58,5.8]
[1751248009564,36.45135852,152.59,152.58,5.8]
[1751248013865,55.10100738,152.59,152.58,5.8]
[1751248014072,55.10100738,152.59,152.55,5.78]
[1751248014073,0.28432314,152.58,152.55,5.78]
[1751248014275,5.188551,152.58,152.55,5.78]
[1751248015364,5.24349478,152.57,152.55,5.78]
[1751248026160,0.28432314,152.56,152.55,5.78]
[1751248026857,26.0,152.54,152.52,0.04]
[1751248027165,26.0,152.53,152.52,5.82]
[1751248028080,31.24486986,152.53,152.52,5.82]
[1751248032752,26.0,152.53,152.52,5.82]
[1751248032950,147.18432314,152.56,152.52,5.82]
[1751248032951,146.9,152.56,152.52,5.82]
[1751248033176,26.0,152.55,152.52,5.82]
[1751248036584,31.24434957,152.55,152.52,5.82]
[1751248041886,31.24434957,152.55,152.52,0.04]
[1751248042085,31.24434957,152.55,152.53,5.78]
[1751248053596,0.28432314,152.54,152.53,5.78]
[1751248054694,5.18971412,152.54,152.53,5.78]
[1751248055697,10.43424014,152.54,152.53,5.78]
[1751248056391,5.52884916,152.54,152.53,5.78]
[1751248056901,10.4338679,152.54,152.53,5.78]
[1751248059601,18.64964886,152.53,152.52,0.04]
[1751248059791,23.5546676,152.53,152.52,0.04]
[1751248060586,0.28432314,152.52,152.49,5.76]
[1751248060883,5.18934188,152.52,152.46,1.6327]
[1751248061083,26.0,152.48,152.47,5.76]
[1751248062696,31.24658971,152.48,152.47,5.76]
[1751248063010,31.53091285,152.48,152.45,5.8]
[1751248074994,31.24658971,152.48,152.45,5.8]
[1751248084520,18.933972,152.47,152.45,5.8]
[1751248085631,31.53160111,152.46,152.45,5.8]
[1751248086204,50.18124997,152.46,152.45,5.8]
[1751248086524,31.53160111,152.46,152.45,5.8]
[1751248105326,36.43579018,152.46,152.45,5.8]
[1751248107348,10.43579018,152.46,152.45,5.8]
[1751248107651,44.933972,152.45,152.44,0.04]
[1751248107858,49.83816107,152.45,152.4,5.74]
[1751248108156,26.0,152.41,152.38,1.5439]
[1751248108357,26.0,152.41,152.38,7.2839]
[1751248109054,26.0,152.41,152.38,5.78]
[1751248109360,5.24934383,152.4,152.38,5.78]
[1751248112039,35.013972,152.39,152.35,0.03545]
[1751248112253,26.0,152.36,152.35,0.03545]
[1751248113534,26.28432314,152.36,152.35,0.03545]
[1751248114061,31.53504511,152.36,152.35,0.03545]
[1751248116236,26.0,152.36,152.35,0.03545]
[1751248116638,172.9,152.38,152.35,0.03545]
[1751248116839,172.9,152.38,152.35,1.62655]
[1751248117044,146.9,152.38,152.35,1.62655]
[1751248117245,172.9,152.38,152.35,1.62655]
[1751248118839,172.9,152.38,152.35,6.87761551]
[1751248119039,172.9,152.38,152.35,1.62655]
[1751248119359,17.75292179,152.41,152.35,6.87757096]
[1751248119542,26.0,152.4,152.35,6.87757096]
[1751248120944,12.50383859,152.41,152.35,6.87757096]
[1751248123161,12.50383859,152.41,152.35,6.91757096]
[1751248123456,0.02,152.4,152.35,20.04523751]
[1751248127270,0.02,152.4,152.35,6.91757096]
[1751248133076,0.02,152.4,152.36,18.64964886]
[1751248133659,0.02,152.4,152.37,1.6041]
[1751248133869,0.02,152.4,152.38,5.74]
[1751248135373,0.02,152.4,152.39,5.24968829]
[1751248137483,0.02,152.4,152.38,10.99000773]
[1751248143190,0.02,152.4,152.38,5.74]
[1751248145087,5.26934383,152.4,152.38,5.74]
[1751248146784,0.02,152.4,152.38,5.74]
[1751248147466,0.02,152.4,152.38,10.98996434]
[1751248147866,0.02,152.4,152.38,5.74]
[1751248158799,0.02,152.4,152.38,12.64313493]
[1751248159302,0.02,152.4,152.38,12.68313493]
[1751248162884,0.02,152.4,152.38,7.4332]
[1751248165217,0.02,152.4,152.38,5.78]
[1751248174307,0.02,152.4,152.38,11.02999447]
[1751248188909,0.02,152.4,152.38,5.78]
[1751248200733,0.02,152.4,152.38,11.03001334]
[1751248200917,0.02,152.4,152.39,36.582572]
[1751248201299,0.02,152.45,152.39,41.54793715]
[1751248201519,0.02,152.45,152.39,22.89828829]
[1751248201910,26.02,152.45,152.39,6.83828829]
[1751248202240,26.02,152.45,152.39,5.24968829]
[1751248203126,31.26796071,152.45,152.38,27.08989271]
[1751248203522,31.26796071,152.45,152.38,21.84]
[1751248203827,31.26796071,152.45,152.38,5.78]
[1751248207730,31.26796071,152.45,152.38,11.02998016]
[1751248208427,31.26796071,152.45,152.38,5.78]
[1751248210242,4.90690846,152.44,152.38,5.78]
[1751248210548,31.26796071,152.45,152.38,5.78]
[1751248212835,31.26796071,152.45,152.38,11.02993456]
[1751248215336,4.90726902,152.44,152.38,5.78]
[1751248215926,4.90726902,152.44,152.38,11.03003136]
[1751248216342,31.24831069,152.43,152.38,11.03003136]
[1751248221718,31.24831069,152.43,152.38,5.78]
[1751248222041,26.02,152.45,152.38,11.03000012]
[1751248224832,31.2676874,152.45,152.38,11.03000012]
[1751248230234,31.2676874,152.45,152.38,5.78]
[1751248230741,0.28432314,152.44,152.38,5.78]
[1751248231949,5.24831069,152.43,152.38,11.02996072]
[1751248232130,31.24807391,152.44,152.38,11.02996072]
[1751248232338,31.24807391,152.44,152.38,5.78]
[1751248233436,31.24807391,152.44,152.38,11.02997867]
[1751248235242,31.24807391,152.44,152.38,5.78]
[1751248235243,44.36798994,152.44,152.38,5.78]
[1751248239561,23.84400773,152.43,152.38,5.78]
[1751248239768,26.0,152.4,152.38,5.78]
[1751248240636,31.24965041,152.4,152.38,5.78]
[1751248248442,5.24920868,152.41,152.38,5.78]
[1751248248641,31.24920868,152.41,152.38,5.78]
[1751248249960,26.0,152.41,152.38,5.78]
[1751248250258,31.24904207,152.41,152.38,5.78]
[1751248260876,26.0,152.41,152.38,5.78]
[1751248261171,0.02,152.44,152.38,7.3908]
[1751248261374,26.0,152.43,152.38,7.3908]
[1751248261673,26.0,152.43,152.38,12.64074183]
[1751248262054,0.02,152.41,152.38,12.64074183]
[1751248266875,0.02,152.41,152.4,5.24934383]
[1751248269175,0.02,152.44,152.41,18.64964886]
[1751248269373,0.02,152.44,152.42,16.04]
[1751248270688,0.02,152.44,152.43,5.24831069]
[1751248272374,0.02,152.44,152.42,21.28859828]
[1751248276086,0.02,152.44,152.43,18.64964886]
[1751248276276,0.02,152.44,152.43,20.23054886]
[1751248277490,0.02,152.44,152.43,20.514872]
[1751248277790,0.02,152.44,152.43,26.98073842]
[1751248277972,0.02,152.44,152.43,32.22904911]
[1751248283593,0.02,152.44,152.43,31.61435955]
[1751248284492,0.02,152.44,152.43,31.89868269]
[1751248285898,0.02,152.44,152.43,32.22904911]
[1751248286975,0.02,152.47,152.46,44.64964886]
[1751248287173,0.02,152.47,152.46,66.73969256]
[1751248287392,0.02,152.47,152.46,66.693972]
[1751248287897,0.02,152.47,152.46,67.0240157]
[1751248288888,0.02,152.47,152.46,72.27129367]
[1751248289072,0.02,152.47,152.46,73.92729367]
[1751248302097,0.02,152.47,152.46,71.92124997]
[1751248302516,0.02,152.47,152.46,71.63692683]
[1751248302699,0.02,152.47,152.46,71.92124997]
[1751248303306,0.02,152.47,152.46,71.63692683]
[1751248304324,0.02,152.47,152.46,26.98727797]
[1751248314916,0.02,152.47,152.46,5.72]
[1751248317122,12.93143382,152.47,152.46,5.72]
[1751248319614,7.6845,152.47,152.46,5.72]
[1751248323623,0.02,152.47,152.46,5.72]
[1751248323939,0.02,152.47,152.46,10.96727797]
[1751248324140,0.02,152.47,152.46,5.7]
[1751248326746,8.1029,152.47,152.46,5.7]
[1751248326913,8.38722314,152.47,152.46,5.7]
[1751248327818,13.63415696,152.47,152.46,5.7]
[1751248329722,32.28380582,152.47,152.46,5.7]
[1751248330315,48.30380582,152.47,152.46,5.7]
[1751248332047,48.32380582,152.47,152.46,5.7]
[1751248337657,26.0,152.43,152.41,5.7]
[1751248337826,42.04,152.43,152.41,5.7]
[1751248338927,5.24865503,152.42,152.41,5.7]
[1751248341891,18.37029261,152.42,152.38,0.04]